Workbook

Sheet Початок
B1: ПРО ЦЕЙ ШАБЛОН
B2: Відстежуйте витрати на захід і отримані від нього Прибуток за допомогою цієї книги планування.
B3: У таблиці на аркушах витрати і Прибуток введіть назву заходу й укажіть відомості про нього.
B4: Загальні витрати та Загальний прибуток обчислюються автоматично.
B5: Діаграма та зведення прибутків і збитків автоматично оновлюються на аркуші "Зведення".
B6: Примітка.
B7: Додаткові вказівки наведено в стовпці A на кожному аркуші. Цей текст приховано навмисно. Щоб вилучити текст, виберіть стовпець A й натисніть клавішу Видалeння. Щоб відобразити текст, виберіть стовпець A та змініть колір шрифту.
B8: Щоб дізнатися більше про таблиці, натисніть клавіші Shift+F10 у таблиці, виберіть "Таблиця", а потім – "Текст заміщення".

Sheet Витрати
A1: Введіть орієнтовнo та фактичнo витрати на кожну категорію у відповідні таблиці на цьому аркуші. Загальні витрати обчислюються автоматично. Корисні вказівки щодо роботи з цим аркушем наведено в клітинках у цьому стовпці. Клацніть стрілку вниз, щоб почати.
A2: Введіть назву заходу в клітинку праворуч, щоб налаштувати заголовки цього та інших аркушів. | B2: Бюджет заходу
A3: У клітинці G3 наведено надпис "Витрати". | G3: Витрати
A4: Надпис "Орієнтовно" наведено в клітинці G4, а "Фактично" – у клітинці H4. | G4: Орієнтовно | H4: Фактично
A5: Надпис "Загальні витрати" наведено в клітинці праворуч. Орієнтовнo загальні витрати обчислюються автоматично в клітинці G5. Фактичнo загальні витрати та гістограма автоматично оновлюються в клітинці H5. Подальші вказівки наведено в клітинці A7. | B5: Загальні витрати | G5: =SUM(C12,C20,C26,C33,G12,G20,G25) -> 1,145.00₴ | H5: =SUM(D12,D20,D26,D33,H12,H20,H25) -> 395.00₴
A7: Суми витрат на місце проведення введіть у таблицю, починаючи з клітинки праворуч, а суми витрат на легкі закуски – у таблицю, починаючи з клітинки F7. Подальші вказівки наведено в клітинці A14. | B7: Місце проведення | C7: Орієнтовно | D7: Фактично | F7: Легкі закуски | G7: Орієнтовно | H7: Фактично
B8: Плата за користування кімнатою та залом | C8: 500.00₴ | D8: 250.00₴ | F8: Страви
B9: Співробітники на місці проведення | C9: 400.00₴ | D9: 50.00₴ | F9: Напої
B10: Обладнання | F10: Скатертини
B11: Столи та стільці | F11: Персонал і чайові
B12: Підсумок | C12: =SUBTOTAL(109,ВитратиНаМісцеПроведення[Орієнтовно]) -> 900.00₴ | D12: =SUBTOTAL(109,ВитратиНаМісцеПроведення[Фактично]) -> 300.00₴ | F12: Підсумок | G12: =SUBTOTAL(109,ВитратиНаЛегкіЗакуски[Орієнтовно]) -> 0.00₴ | H12: =SUBTOTAL(109,ВитратиНаЛегкіЗакуски[Фактично]) -> 0.00₴
A14: Суми Витрати На Прикраси введіть у таблицю, починаючи з клітинки праворуч, а суми Витрати На Програму – у таблицю, починаючи з клітинки F14. Подальші вказівки наведено в клітинці A22. | B14: Прикраси | C14: Орієнтовно | D14: Фактично | F14: Програма | G14: Орієнтовно | H14: Фактично
B15: Квіти | C15: 200.00₴ | D15: 50.00₴ | F15: Виконувачі
B16: Свічки | F16: Промовці
B17: Освітлення | F17: Подорож
B18: Повітряні кульки | F18: Готель
B19: Папір | F19: Інше
B20: Підсумок | C20: =SUBTOTAL(109,ВитратиНаПрикраси[Орієнтовно]) -> 200.00₴ | D20: =SUBTOTAL(109,ВитратиНаПрикраси[Фактично]) -> 50.00₴ | F20: Підсумок | G20: =SUBTOTAL(109,ВитратиНаПрограму[Орієнтовно]) -> 0.00₴ | H20: =SUBTOTAL(109,ВитратиНаПрограму[Фактично]) -> 0.00₴
A22: Суми Витрати На Рекламу введіть у таблицю, починаючи з клітинки праворуч, а суми Витрати На Призи – у таблицю, починаючи з клітинки F22. Подальші вказівки наведено в клітинці A28. | B22: Реклама | C22: Орієнтовно | D22: Фактично | F22: Призи | G22: Орієнтовно | H22: Фактично
B23: Графічні роботи | C23: 45.00₴ | D23: 45.00₴ | F23: Стрічки/таблички/трофеї
B24: Ксерокопіювання/друк | F24: Подарунки
B25: Поштові витрати | F25: Підсумок | G25: =SUBTOTAL(109,ВитратиНаПризи[Орієнтовно]) -> 0.00₴ | H25: =SUBTOTAL(109,ВитратиНаПризи[Фактично]) -> 0.00₴
B26: Підсумок | C26: =SUBTOTAL(109,ВитратиНаРекламу[Орієнтовно]) -> 45.00₴ | D26: =SUBTOTAL(109,ВитратиНаРекламу[Фактично]) -> 45.00₴
A28: Суми Інші Витрати введіть у таблицю, починаючи з клітинки праворуч. | B28: Різне | C28: Орієнтовно | D28: Фактично
B29: Телефон
B30: Транспорт
B31: Канцтовари
B32: Послуги факсу
B33: Підсумок | C33: =SUBTOTAL(109,ІншіВитрати[Орієнтовно]) -> 0.00₴ | D33: =SUBTOTAL(109,ІншіВитрати[Фактично]) -> 0.00₴

Sheet Прибуток
A1: Введіть орієнтовнo та фактичнo прибутки з кожної категорії у відповідні таблиці цього аркуша. Загальна сума прибутку обчислюється автоматично. Корисні вказівки щодо роботи з цим аркушем наведено в клітинках у цьому стовпці. Клацніть стрілку вниз, щоб почати.
A2: Назва заходу автоматично оновлюється в клітинці праворуч. | B2: =Витрати!B2 -> Бюджет заходу
A3: У клітинці F3 наведено надпис "Прибуток". | F3: Прибуток
A4: Надпис "Орієнтовно" наведено в клітинці F4, а "Фактично" – у клітинці G4. | F4: Орієнтовно | G4: Фактично
A5: Надпис "Загальний прибуток" наведено в клітинці праворуч. Орієнтовний загальний прибуток обчислюється автоматично в клітинці F5. Фактичний загальний прибуток і гістограма автоматично оновлюються в клітинці G5. | B5: Загальний прибуток | F5: =SUM(Квитки[[#Totals],[Орієнтовний загальний прибуток]],РекламніЛистівки[[#Totals],[Орієнтовний загальний прибуток]],УчасникиВиставкиТаПостачальники[[#Totals],[Орієнтовний загальний прибуток]],КількістьПроданихТоварів[[#Totals],[Орієнтовний загальний прибуток]]) -> 1,936.00₴ | G5: =SUM(Квитки[[#Totals],[Фактичний загальний прибуток]],РекламніЛистівки[[#Totals],[Фактичний загальний прибуток]],УчасникиВиставкиТаПостачальники[[#Totals],[Фактичний загальний прибуток]],КількістьПроданихТоварів[[#Totals],[Фактичний загальний прибуток]]) -> 1,831.00₴
A6: Надпис "Квитки" наведено в клітинці праворуч. | B6: Квитки
A7: Введіть орієнтовнo й фактичнo кількість Квитки і їхню ціну в таблицю, починаючи з клітинки праворуч. Орієнтовниo і фактичнo прибуток від збуту Квитки обчислюється автоматично. Подальші вказівки наведено в клітинці A12. | B7: Орієнтовно | C7: Фактично | D7: Тип | E7: Ціна | F7: Орієнтовний загальний прибуток | G7: Фактичний загальний прибуток
B8: 300 | C8: 278 | D8: Дорослі @ | E8: 5.00₴ | F8: =B8*E8 -> 1,500.00₴ | G8: =C8*E8 -> 1,390.00₴
B9: 197 | C9: 195 | D9: Діти @ | E9: 2.00₴ | F9: =B9*E9 -> 394.00₴ | G9: =C9*E9 -> 390.00₴
B10: 42 | C10: 51 | D10: Інші @ | E10: 1.00₴ | F10: 42.00₴ | G10: 51.00₴
F11: =SUBTOTAL(109,Квитки[Орієнтовний загальний прибуток]) -> 1,936.00₴ | G11: =SUBTOTAL(109,Квитки[Фактичний загальний прибуток]) -> 1,831.00₴
A12: Надпис "Рекламні листівки" наведено в клітинці праворуч. | B12: Рекламні листівки
A13: Введіть орієнтовнo й фактичнo кількість Рекламні листівки і їхню вартість у таблицю, починаючи з клітинки праворуч. Орієнтовниo і фактичниo прибуток від реклами обчислюється автоматично. Подальші вказівки наведено в клітинці A18. | B13: Орієнтовно | C13: Фактично | D13: Тип | E13: Ціна | F13: Орієнтовний загальний прибуток | G13: Фактичний загальний прибуток
D14: Титульні сторінки @ | F14: =B14*E14 -> 0.00₴ | G14: =C14*E14 -> 0.00₴
D15: На половину сторінки @ | F15: =B15*E15 -> 0.00₴ | G15: =C15*E15 -> 0.00₴
D16: На чверть сторінки @ | F16: 0.00₴ | G16: 0.00₴
F17: =SUBTOTAL(109,РекламніЛистівки[Орієнтовний загальний прибуток]) -> 0.00₴ | G17: =SUBTOTAL(109,РекламніЛистівки[Фактичний загальний прибуток]) -> 0.00₴
A18: Надпис "Учасники виставки або постачальники" наведено в клітинці праворуч. | B18: Учасники виставки / постачальники
A19: Введіть орієнтовнo й фактичнo кількість учасників виставки, постачальників і стендів у таблицю, починаючи з клітинки праворуч. Орієнтовниo і фактичниo прибуток обчислюється автоматично. Подальші вказівки наведено в клітинці A24. | B19: Орієнтовно | C19: Фактично | D19: Тип | E19: Ціна | F19: Орієнтовний загальний прибуток | G19: Фактичний загальний прибуток
D20: Великі стенди @ | F20: =B20*E20 -> 0.00₴ | G20: =C20*E20 -> 0.00₴
D21: Середні стенди @ | F21: =B21*E21 -> 0.00₴ | G21: =C21*E21 -> 0.00₴
D22: Малі стенди @ | F22: 0.00₴ | G22: 0.00₴
F23: =SUBTOTAL(109,УчасникиВиставкиТаПостачальники[Орієнтовний загальний прибуток]) -> 0.00₴ | G23: =SUBTOTAL(109,УчасникиВиставкиТаПостачальники[Фактичний загальний прибуток]) -> 0.00₴
A24: Надпис "Кількість проданих товарів" наведено в клітинці праворуч. | B24: Кількість проданих товарів
A25: Введіть орієнтовнo й фактичнo кількість проданих товарів і їхню ціну в таблицю, починаючи з клітинки праворуч. Орієнтовниo і фактичниo прибуток обчислюється автоматично. | B25: Орієнтовно | C25: Фактично | D25: Тип | E25: Ціна | F25: Орієнтовний загальний прибуток | G25: Фактичний загальний прибуток
D26: Елементи @ | F26: =B26*E26 -> 0.00₴ | G26: =C26*E26 -> 0.00₴
D27: Елементи @ | F27: =B27*E27 -> 0.00₴ | G27: =C27*E27 -> 0.00₴
D28: Елементи @ | F28: 0.00₴ | G28: 0.00₴
D29: Елементи @ | F29: 0.00₴ | G29: 0.00₴
F30: =SUBTOTAL(109,КількістьПроданихТоварів[Орієнтовний загальний прибуток]) -> 0.00₴ | G30: =SUBTOTAL(109,КількістьПроданихТоварів[Фактичний загальний прибуток]) -> 0.00₴

Sheet Зведення
A1: Зведення прибутків і збитків, а також діаграма відомостей про загальні показники автоматично оновлюються на цьому аркуші. Корисні вказівки щодо роботи з цим аркушем наведено в клітинках у цьому стовпці. Клацніть стрілку вниз, щоб почати.
A2: Назва заходу автоматично оновлюється в клітинці праворуч. | B2: =Витрати!B2 -> Бюджет заходу
A3: Надпис "Зведення прибутків і збитків" наведено в клітинці C3. Подальші вказівки наведено в клітинці A5. | C3: Зведення прибутків і збитків
A5: Підсумок підсумків, що починається в клітинці справа, оновлюється автоматично. Подальші вказівки наведено в клітинці A9. | B5: Підсумок | C5: Орієнтовно | D5: Фактично
B6: Загальний прибуток | C6: =Прибуток!F5 -> 1,936.00₴ | D6: =Прибуток!G5 -> 1,831.00₴
B7: Загальні витрати | C7: =Витрати!G5 -> 1,145.00₴ | D7: =Витрати!H5 -> 395.00₴
B8: Загальний дохід (або збиток) | C8: =C6-C7 -> 791.00₴ | D8: =D6-D7 -> 1,436.00₴
A9: Звичайну стовпчасту діаграму з порівнянням орієнтовно та фактично загального прибутку й загальних витрат наведено в клітинці праворуч. | B9: У цій клітинці наведено звичайну стовпчасту діаграму з порівнянням орієнтовно і фактично загального прибутку й загальних витрат.
